[Event "Campeonato de Aragon Individual 2020 Fase Final"]
[Site "Zaragoza"]
[Date "2020.10.18"]
[Round "2.1"]
[White "Lana Rodriguez, David"]
[Black "Ramiro Ovejero, Juan Luis"]
[Result "1/2-1/2"]
[TimeControl "90+30 sg"]
[WhiteElo "2369"]
[BlackElo "2346"]

1. e4 {[%clk 01:30:58]} {[%emt 14:58:08]} e6 {[%clk 01:30:55]} 2. d4 {[%clk
01:31:14]} d5 {[%clk 01:31:20]} 3. Nc3 {[%clk 01:31:31]} Nf6 {[%clk 01:31:42]}
4. Bg5 {[%clk 01:31:30]} dxe4 5. Nxe4 {[%clk 01:31:56]} Nbd7 {[%clk 01:32:12]}
6. Nxf6+ Nxf6 {[%clk 01:32:26]} 7. Nf3 {[%clk 01:31:08]} h6 {[%clk 01:30:53]} 8.
Bf4 {[%clk 01:31:18]} c5 {[%clk 01:23:11]} {[%emt 00:04:44]} 9. Be5 {[%clk
01:27:00]} {[%emt 00:04:48]} Qb6 {[%clk 01:10:15]} {[%emt 00:13:26]} 10. Bd3
{[%clk 01:27:22]} {[%emt 00:00:08]} cxd4 {[%clk 01:10:31]} {[%emt 00:00:14]} 11.
O-O {[%clk 01:27:29]} {[%emt 00:00:24]} Be7 {[%clk 01:04:38]} {[%emt 00:06:23]}
12. Qe2 {[%clk 01:27:12]} {[%emt 00:00:47]} O-O {[%clk 00:58:01]} {[%emt
00:07:06]} 13. Bxd4 {[%clk 01:27:17]} {[%emt 00:00:26]} Qc7 {[%clk 00:53:43]}
{[%emt 00:04:48]} 14. Rad1 {[%clk 01:27:19]} {[%emt 00:00:28]} Bd7 {[%clk
00:40:54]} {[%emt 00:13:19]} 15. Be5 {[%clk 01:26:19]} {[%emt 00:01:30]} Qb6
{[%clk 00:37:34]} {[%emt 00:03:50]} 16. c4 {[%clk 01:26:10]} {[%emt 00:00:39]}
Bc6 {[%clk 00:35:26]} {[%emt 00:02:39]} 17. Nd4 {[%clk 01:21:20]} {[%emt
00:05:20]} Rad8 {[%clk 00:33:44]} {[%emt 00:02:12]} 18. Bb1 {[%clk 01:20:16]}
{[%emt 00:01:35]} Rd7 {[%clk 00:18:48]} {[%emt 00:15:26]} 19. Nxc6 {[%clk
01:19:30]} {[%emt 00:01:16]} Qxc6 {[%clk 00:19:03]} {[%emt 00:00:15]} 20. Rxd7
{[%clk 01:19:54]} {[%emt 00:00:06]} Qxd7 {[%clk 00:19:10]} {[%emt 00:00:23]} 21.
Rd1 {[%clk 01:19:39]} {[%emt 00:00:44]} Qc6 {[%clk 00:18:03]} {[%emt 00:01:38]}
22. b3 {[%clk 01:18:59]} {[%emt 00:01:10]} Rd8 {[%clk 00:17:44]} {[%emt
00:00:48]} 23. Rxd8+ {[%clk 01:19:24]} {[%emt 00:00:06]} Bxd8 {[%clk 00:18:11]}
{[%emt 00:00:03]} 24. Qd3 {[%clk 01:19:40]} {[%emt 00:00:14]} Be7 {[%clk
00:18:30]} {[%emt 00:00:11]} 25. Bc2 {[%clk 01:18:56]} {[%emt 00:01:15]} Qd7
{[%clk 00:17:45]} {[%emt 00:01:15]} 26. Qe2 {[%clk 01:17:12]} {[%emt 00:02:15]}
Bc5 {[%clk 00:12:06]} {[%emt 00:06:09]} 27. h3 {[%clk 01:13:56]} {[%emt
00:03:45]} Bd4 {[%clk 00:11:27]} {[%emt 00:01:09]} 28. Bf4 {[%clk 01:14:25]}
{[%emt 00:00:02]} e5 {[%clk 00:10:32]} {[%emt 00:01:25]} 29. Bd2 {[%clk
01:14:36]} {[%emt 00:00:19]} Qd6 {[%clk 00:07:37]} {[%emt 00:03:24]} 30. b4
{[%clk 01:14:33]} {[%emt 00:00:33]} b6 {[%clk 00:07:52]} {[%emt 00:00:15]} 31.
a3 {[%clk 01:13:56]} {[%emt 00:01:07]} Bb2 {[%clk 00:07:14]} {[%emt 00:01:08]}
32. a4 {[%clk 01:13:43]} {[%emt 00:00:44]} Ba3 {[%clk 00:07:00]} {[%emt
00:00:44]} 33. Bc3 {[%clk 01:11:47]} {[%emt 00:02:26]} Bxb4 {[%clk 00:07:06]}
{[%emt 00:00:23]} 34. Bxe5 {[%clk 01:09:24]} {[%emt 00:02:53]} Qe6 {[%clk
00:06:24]} {[%emt 00:01:12]} 35. Kf1 {[%clk 01:05:18]} {[%emt 00:04:36]} Kf8
{[%clk 00:05:54]} {[%emt 00:00:59]} 36. f4 {[%clk 01:04:25]} {[%emt 00:01:24]}
Bd6 {[%clk 00:05:36]} {[%emt 00:00:49]} 37. g4 {[%clk 01:01:07]} {[%emt
00:03:48]} Bxe5 {[%clk 00:05:30]} {[%emt 00:00:35]} 38. Bf5 {[%clk 01:01:09]}
{[%emt 00:00:28]} Qc6 {[%clk 00:03:48]} {[%emt 00:02:12]} 39. fxe5 {[%clk
01:01:28]} {[%emt 00:00:11]} Qh1+ {[%clk 00:04:09]} {[%emt 00:00:09]} 40. Kf2
{[%clk 01:01:46]} {[%emt 00:00:12]} Qh2+ {[%clk 00:04:36]} {[%emt 00:00:03]} 41.
Ke1 {[%clk 01:01:52]} {[%emt 00:00:24]} Qg1+ {[%clk 00:04:51]} {[%emt
00:00:14]} 42. Kd2 {[%clk 01:02:08]} {[%emt 00:00:15]} Qd4+ {[%clk 00:05:11]}
{[%emt 00:00:11]} 43. Kc2 {[%clk 01:02:31]} {[%emt 00:00:06]} Nd7 {[%clk
00:05:18]} {[%emt 00:00:22]} 44. Bxd7 {[%clk 01:01:32]} {[%emt 00:01:30]} Qxd7
{[%clk 00:05:44]} {[%emt 00:00:04]} 45. Kb3 {[%clk 01:01:57]} {[%emt 00:00:04]}
Qc6 {[%clk 00:05:53]} {[%emt 00:00:21]} 46. Qd3 {[%clk 01:00:21]} {[%emt
00:02:07]} Ke7 {[%clk 00:05:40]} {[%emt 00:00:43]} 47. Qe3 {[%clk 00:57:30]}
{[%emt 00:03:21]} Qc5 {[%clk 00:05:21]} {[%emt 00:00:49]} 48. Qe4 {[%clk
00:56:21]} {[%emt 00:01:39]} a5 {[%clk 00:05:33]} {[%emt 00:00:18]} 49. Kc2
{[%clk 00:56:47]} {[%emt 00:00:04]} Qb4 {[%clk 00:05:41]} {[%emt 00:00:22]} 50.
Qb7+ {[%clk 00:55:40]} {[%emt 00:01:38]} Ke6 {[%clk 00:06:03]} {[%emt
00:00:08]} 51. Qd5+ {[%clk 00:55:48]} {[%emt 00:00:22]} Ke7 {[%clk 00:06:30]}
{[%emt 00:00:03]} 52. Qb7+ {[%clk 00:54:59]} {[%emt 00:01:19]} Ke6 {[%clk
00:06:56]} {[%emt 00:00:03]} 53. Qc8+ {[%clk 00:54:40]} {[%emt 00:00:49]} Kxe5
{[%clk 00:06:13]} {[%emt 00:01:13]} 54. Qf5+ {[%clk 00:54:20]} {[%emt
00:00:50]} Kd6 {[%clk 00:06:22]} {[%emt 00:00:21]} 55. Qd5+ {[%clk 00:54:14]}
{[%emt 00:00:36]} Ke7 {[%clk 00:06:46]} {[%emt 00:00:06]} 56. Qe5+ {[%clk
00:54:35]} {[%emt 00:00:09]} Kd7 {[%clk 00:06:55]} {[%emt 00:00:20]} 57. Qd5+
{[%clk 00:54:55]} {[%emt 00:00:10]} Ke7 {[%clk 00:06:28]} {[%emt 00:00:57]} 58.
Qe5+ {[%clk 00:54:38]} {[%emt 00:00:48]} Kd7 {[%clk 00:06:54]} {[%emt
00:00:04]} 59. Qd5+ {[%clk 00:54:25]} {[%emt 00:00:43]} Ke7 {[%clk 00:07:06]}
{[%emt 00:00:18]} 60. Qb7+ {[%clk 00:52:56]} {[%emt 00:01:59]} Ke6 {[%clk
00:07:09]} {[%emt 00:00:27]} 61. Qe4+ {[%clk 00:52:15]} {[%emt 00:01:11]} Kd6
{[%clk 00:07:16]} {[%emt 00:00:23]} 62. Qd4+ {[%clk 00:51:58]} {[%emt
00:00:46]} Ke7 {[%clk 00:07:31]} {[%emt 00:00:15]} 63. Qe5+ {[%emt 00:02:46]}
1/2-1/2

[Event "Campeonato de Aragon Individual 2020 Fase Final"]
[Site "Zaragoza"]
[Date "2020.10.18"]
[Round "2.2"]
[White "Garza Marco, Sergio"]
[Black "Romero Pallares, Daniel"]
[Result "1-0"]
[TimeControl "90+30 sg"]
[WhiteElo "2399"]
[BlackElo "2209"]

1. Nf3 {[%clk 01:30:58]} {[%emt 14:11:03]} Nf6 {[%clk 01:30:53]} 2. g3 {[%clk
01:31:18]} d5 {[%clk 01:26:03]} 3. Bg2 {[%clk 01:31:19]} e6 {[%clk 01:26:29]} 4.
O-O {[%clk 01:31:27]} Be7 {[%clk 01:26:55]} 5. b3 {[%clk 01:31:40]} O-O {[%clk
01:27:08]} 6. c4 {[%clk 01:31:25]} b6 {[%clk 01:26:11]} 7. Bb2 {[%clk
01:31:34]} c5 {[%clk 01:23:35]} {[%emt 00:03:05]} 8. e3 {[%clk 01:31:55]}
{[%emt 00:00:08]} Bb7 {[%clk 01:21:51]} {[%emt 00:02:14]} 9. Nc3 {[%clk
01:31:45]} {[%emt 00:00:40]} Qc8 {[%clk 01:06:08]} {[%emt 00:16:14]} 10. Rc1
{[%clk 01:28:02]} {[%emt 00:04:13]} Rd8 {[%clk 01:05:01]} {[%emt 00:01:37]} 11.
d3 {[%clk 01:10:19]} {[%emt 00:18:13]} Nc6 {[%clk 00:59:52]} {[%emt 00:05:39]}
12. Qe2 {[%clk 01:05:29]} {[%emt 00:05:20]} d4 {[%clk 00:50:25]} {[%emt
00:09:58]} 13. Nb5 {[%clk 00:54:10]} {[%emt 00:11:49]} a6 {[%clk 00:43:29]}
{[%emt 00:07:25]} 14. Na3 {[%clk 00:54:34]} {[%emt 00:00:06]} e5 {[%clk
00:42:27]} {[%emt 00:01:32]} 15. e4 {[%clk 00:54:29]} {[%emt 00:00:35]} b5
{[%clk 00:34:12]} {[%emt 00:08:45]} 16. Ra1 {[%clk 00:51:12]} {[%emt 00:03:46]}
b4 {[%clk 00:31:40]} {[%emt 00:03:02]} 17. Nc2 {[%clk 00:51:35]} {[%emt
00:00:07]} a5 {[%clk 00:31:59]} {[%emt 00:00:12]} 18. a4 {[%clk 00:51:59]}
{[%emt 00:00:05]} bxa3 {[%clk 00:31:31]} {[%emt 00:00:58]} 19. Rxa3 {[%clk
00:52:06]} {[%emt 00:00:23]} Qc7 {[%clk 00:31:13]} {[%emt 00:00:47]} 20. Nfe1
{[%clk 00:49:13]} {[%emt 00:03:22]} Rdb8 {[%clk 00:28:08]} {[%emt 00:03:35]} 21.
f4 {[%clk 00:47:17]} {[%emt 00:02:27]} Bc8 {[%clk 00:28:21]} {[%emt 00:00:17]}
22. Bc1 {[%clk 00:46:54]} {[%emt 00:00:53]} Ra7 {[%clk 00:26:18]} {[%emt
00:02:34]} 23. Bd2 {[%clk 00:46:13]} {[%emt 00:01:11]} Rba8 {[%clk 00:20:25]}
{[%emt 00:06:23]} 24. Nf3 {[%clk 00:45:31]} {[%emt 00:01:12]} Bd6 {[%clk
00:18:19]} {[%emt 00:02:36]} 25. fxe5 {[%clk 00:41:37]} {[%emt 00:04:24]} Nxe5
{[%clk 00:18:20]} {[%emt 00:00:28]} 26. Nxe5 {[%clk 00:41:25]} {[%emt
00:00:42]} Bxe5 {[%clk 00:18:47]} {[%emt 00:00:03]} 27. Rfa1 {[%clk 00:40:22]}
{[%emt 00:01:33]} Bg4 {[%clk 00:14:05]} {[%emt 00:05:12]} 28. Qe1 {[%clk
00:38:17]} {[%emt 00:02:35]} h5 {[%clk 00:12:12]} {[%emt 00:02:23]} 29. Bxa5
{[%clk 00:11:50]} {[%emt 00:26:57]} Qb8 {[%clk 00:12:27]} {[%emt 00:00:14]} 30.
b4 {[%clk 00:12:14]} {[%emt 00:00:07]} h4 {[%clk 00:10:25]} {[%emt 00:02:32]}
31. bxc5 {[%clk 00:12:42]} {[%emt 00:00:02]} hxg3 {[%clk 00:10:29]} {[%emt
00:00:26]} 32. h3 {[%clk 00:13:11]} {[%emt 00:00:01]} Bd7 {[%clk 00:10:01]}
{[%emt 00:00:58]} 33. Bb4 {[%clk 00:09:43]} {[%emt 00:03:59]} Rxa3 {[%clk
00:08:46]} {[%emt 00:01:45]} 34. Rxa3 {[%clk 00:10:11]} {[%emt 00:00:02]} Rxa3
{[%clk 00:09:10]} {[%emt 00:00:06]} 35. Nxa3 {[%clk 00:10:28]} {[%emt
00:00:13]} Nh5 {[%clk 00:05:04]} {[%emt 00:04:35]} 36. Nc2 {[%clk 00:07:48]}
{[%emt 00:03:10]} Ba4 {[%clk 00:04:11]} {[%emt 00:01:23]} 37. Na3 {[%clk
00:08:06]} {[%emt 00:00:12]} Nf4 {[%clk 00:04:18]} {[%emt 00:00:23]} 38. Qb1
{[%clk 00:05:01]} {[%emt 00:03:35]} Qc8 {[%clk 00:02:31]} {[%emt 00:02:16]} 39.
Qf1 {[%clk 00:05:01]} {[%emt 00:00:30]} Bd7 {[%clk 00:02:31]} {[%emt 00:00:30]}
40. Bd2 {[%clk 00:01:25]} {[%emt 00:04:05]} Nxg2 {[%clk 00:02:02]} {[%emt
00:00:59]} 41. Qxg2 {[%clk 00:01:48]} {[%emt 00:00:07]} Bxh3 {[%clk 00:02:05]}
{[%emt 00:00:27]} 42. Qf3 {[%clk 00:02:16]} {[%emt 00:00:01]} Bg4 {[%clk
00:02:02]} {[%emt 00:00:33]} 43. Qf1 {[%clk 00:02:04]} {[%emt 00:00:42]} Bh3
{[%clk 00:01:11]} {[%emt 00:01:21]} 44. Qf3 {[%clk 00:01:40]} {[%emt 00:00:54]}
Bg4 {[%clk 00:01:40]} 45. Qf1 {[%clk 00:02:08]} {[%emt 00:00:01]} Qa6 {[%clk
00:02:05]} {[%emt 00:00:05]} 46. Bf4 {[%clk 00:01:52]} {[%emt 00:00:45]} Be2
{[%clk 00:00:51]} {[%emt 00:01:45]} 47. Qxe2 {[%clk 00:01:41]} {[%emt
00:00:41]} Bxf4 {[%clk 00:01:16]} {[%emt 00:00:04]} 48. Nc2 {[%clk 00:02:06]}
{[%emt 00:00:05]} Qh6 {[%clk 00:00:58]} {[%emt 00:00:49]} 49. c6 {[%clk
00:00:51]} {[%emt 00:01:45]} Qxc6 {[%clk 00:00:49]} {[%emt 00:00:39]} 50. Qg4
{[%clk 00:00:48]} {[%emt 00:00:32]} g5 {[%clk 00:00:32]} {[%emt 00:00:48]} 51.
Kg2 {[%clk 00:01:04]} {[%emt 00:00:14]} Qa4 {[%clk 00:00:32]} {[%emt 00:00:31]}
52. Nxd4 {[%clk 00:01:19]} {[%emt 00:00:15]} Qa2+ {[%clk 00:00:52]} {[%emt
00:00:10]} 53. Qe2 {[%clk 00:00:40]} {[%emt 00:01:08]} Qa1 {[%clk 00:00:51]}
{[%emt 00:00:31]} 54. Nf5 {[%clk 00:01:09]} {[%emt 00:00:01]} Qh8 {[%clk
00:01:07]} {[%emt 00:00:13]} 55. Nxg3 {[%clk 00:00:32]} {[%emt 00:01:07]} Bxg3
{[%clk 00:01:16]} {[%emt 00:00:22]} 56. Kxg3 {[%clk 00:01:01]} Qh4+ {[%clk
00:01:40]} {[%emt 00:00:05]} 57. Kg2 {[%clk 00:01:16]} {[%emt 00:00:14]} g4
{[%clk 00:02:09]} {[%emt 00:00:02]} 58. Qe3 {[%clk 00:01:41]} {[%emt 00:00:05]}
Qf6 {[%clk 00:01:25]} {[%emt 00:01:14]} 59. Kg3 {[%clk 00:01:44]} {[%emt
00:00:27]} Qg6 {[%clk 00:00:31]} {[%emt 00:01:24]} 60. Qf4 {[%clk 00:02:08]}
{[%emt 00:00:06]} Kf8 {[%clk 00:00:51]} {[%emt 00:00:10]} 61. c5 {[%clk
00:01:55]} {[%emt 00:00:43]} Ke8 {[%clk 00:00:32]} {[%emt 00:00:49]} 62. Qxg4
{[%clk 00:02:00]} {[%emt 00:00:25]} Qa6 {[%clk 00:00:49]} {[%emt 00:00:12]} 63.
Qg8+ {[%clk 00:02:01]} {[%emt 00:00:29]} Ke7 {[%clk 00:01:11]} {[%emt
00:00:08]} 64. Qg5+ {[%clk 00:02:21]} {[%emt 00:00:09]} Ke8 {[%clk 00:01:23]}
{[%emt 00:00:17]} 65. Qe5+ {[%clk 00:02:48]} {[%emt 00:00:05]} Kd7 {[%clk
00:01:23]} {[%emt 00:00:30]} 66. Qd5+ {[%clk 00:02:31]} {[%emt 00:00:46]} Ke7
{[%clk 00:01:42]} {[%emt 00:00:11]} 67. Qd6+ {[%clk 00:01:54]} {[%emt
00:01:08]} Qxd6+ {[%clk 00:02:07]} {[%emt 00:00:05]} 68. cxd6+ {[%clk
00:02:18]} {[%emt 00:00:06]} Kxd6 {[%clk 00:02:34]} {[%emt 00:00:02]} 69. Kf4
{[%clk 00:02:30]} {[%emt 00:00:18]} Ke6 {[%clk 00:02:55]} {[%emt 00:00:09]} 70.
d4 {[%clk 00:02:51]} {[%emt 00:00:09]} f6 {[%clk 00:02:00]} {[%emt 00:01:26]}
71. d5+ {[%clk 00:03:16]} {[%emt 00:00:05]} Ke7 {[%clk 00:02:27]} {[%emt
00:00:02]} 72. Kf5 {[%clk 00:03:32]} {[%emt 00:00:13]} Kf7 {[%clk 00:02:46]}
{[%emt 00:00:11]} 73. d6 {[%clk 00:04:00]} {[%emt 00:00:02]} Ke8 {[%emt
00:02:58]} 1-0

[Event "Campeonato de Aragon Individual 2020 Fase Final"]
[Site "Zaragoza"]
[Date "2020.10.18"]
[Round "2.3"]
[White "Gines Esteo, Pedro Antonio"]
[Black "Eizaguerri Floris, Maria"]
[Result "1-0"]
[TimeControl "90+30 sg"]
[WhiteElo "2434"]
[BlackElo "2167"]

1. Nf3 {[%clk 01:23:48]} d5 {[%clk 01:30:47]} 2. e3 {[%clk 01:21:56]} {[%emt
00:00:02]} Nf6 {[%clk 01:30:37]} {[%emt 00:00:39]} 3. c4 {[%clk 01:22:20]}
{[%emt 00:00:07]} c6 {[%clk 01:30:51]} {[%emt 00:00:15]} 4. b3 {[%clk
01:22:19]} {[%emt 00:00:31]} Bg4 {[%clk 01:31:04]} {[%emt 00:00:17]} 5. Bb2
{[%clk 01:22:04]} {[%emt 00:00:45]} Nbd7 {[%clk 01:31:23]} {[%emt 00:00:11]} 6.
h3 {[%clk 01:20:45]} {[%emt 00:01:49]} Bh5 {[%clk 01:31:46]} {[%emt 00:00:07]}
7. Be2 {[%clk 01:19:11]} {[%emt 00:02:04]} e6 {[%clk 01:30:50]} {[%emt
00:01:26]} 8. O-O {[%clk 01:18:01]} {[%emt 00:01:39]} Bd6 {[%clk 01:28:43]}
{[%emt 00:02:37]} 9. d4 {[%clk 01:14:31]} {[%emt 00:04:00]} O-O {[%clk
01:28:58]} {[%emt 00:00:14]} 10. Nbd2 {[%clk 01:14:57]} {[%emt 00:00:04]} Qe7
{[%clk 01:27:47]} {[%emt 00:01:42]} 11. c5 {[%clk 01:06:03]} {[%emt 00:09:24]}
Bc7 {[%clk 01:27:54]} {[%emt 00:00:22]} 12. b4 {[%clk 01:06:27]} {[%emt
00:00:06]} Ne4 {[%clk 01:04:33]} {[%emt 00:23:51]} 13. Nxe4 {[%clk 00:59:51]}
{[%emt 00:07:06]} dxe4 {[%clk 01:04:58]} {[%emt 00:00:05]} 14. Nd2 {[%clk
01:00:02]} {[%emt 00:00:18]} Bxe2 {[%clk 01:04:36]} {[%emt 00:00:53]} 15. Qxe2
{[%clk 01:00:31]} {[%emt 00:00:02]} f5 {[%clk 01:02:28]} {[%emt 00:02:37]} 16.
b5 {[%clk 00:51:14]} {[%emt 00:09:47]} Nf6 {[%clk 00:57:44]} {[%emt 00:05:14]}
17. a4 {[%clk 00:44:55]} {[%emt 00:06:50]} Nd5 {[%clk 00:54:36]} {[%emt
00:03:38]} 18. Nc4 {[%clk 00:30:41]} {[%emt 00:14:44]} Qg5 {[%clk 00:37:16]}
{[%emt 00:17:49]} 19. Kh1 {[%clk 00:18:53]} {[%emt 00:12:17]} Rf6 {[%clk
00:26:33]} {[%emt 00:11:14]} 20. Nd6 {[%clk 00:12:10]} {[%emt 00:07:13]} Rh6
{[%clk 00:18:36]} {[%emt 00:08:27]} 21. Ra3 {[%clk 00:06:48]} {[%emt 00:05:52]}
Bxd6 {[%clk 00:11:13]} {[%emt 00:07:52]} 22. cxd6 {[%clk 00:07:16]} {[%emt
00:00:02]} Qd8 {[%clk 00:11:19]} {[%emt 00:00:24]} 23. bxc6 {[%clk 00:06:40]}
{[%emt 00:01:07]} bxc6 {[%clk 00:11:43]} {[%emt 00:00:06]} 24. Rb3 {[%clk
00:07:07]} {[%emt 00:00:03]} Qxd6 {[%clk 00:11:32]} {[%emt 00:00:41]} 25. Ba3
{[%clk 00:07:31]} {[%emt 00:00:06]} Qd8 {[%clk 00:05:17]} {[%emt 00:06:46]} 26.
Rfb1 {[%clk 00:07:10]} {[%emt 00:00:51]} Qc8 {[%clk 00:02:40]} {[%emt
00:03:07]} 27. Bd6 {[%clk 00:06:49]} {[%emt 00:00:50]} Nc7 {[%clk 00:02:15]}
{[%emt 00:00:55]} 28. Qc4 {[%clk 00:05:37]} {[%emt 00:01:43]} Qd7 {[%clk
00:00:40]} {[%emt 00:02:05]} 29. Bf4 {[%clk 00:04:09]} {[%emt 00:01:57]} g5
{[%clk 00:00:59]} {[%emt 00:00:11]} 30. Bxg5 {[%clk 00:03:34]} {[%emt
00:01:05]} Rg6 {[%clk 00:01:24]} {[%emt 00:00:04]} 31. Bf4 {[%clk 00:04:00]}
{[%emt 00:00:05]} Qd5 {[%clk 00:00:39]} {[%emt 00:01:15]} 32. Rb8+ {[%clk
00:03:51]} {[%emt 00:00:39]} Rxb8 {[%clk 00:00:55]} {[%emt 00:00:14]} 33. Rxb8+
{[%clk 00:04:15]} {[%emt 00:00:05]} Kf7 {[%clk 00:01:11]} {[%emt 00:00:14]} 34.
Qb4 {[%clk 00:04:08]} {[%emt 00:00:37]} c5 {[%clk 00:00:32]} {[%emt 00:01:09]}
35. Qb7 {[%clk 00:04:09]} {[%emt 00:00:29]} e5 {[%clk 00:00:32]} {[%emt
00:00:30]} 36. Qxc7+ {[%clk 00:04:32]} {[%emt 00:00:07]} 1-0

[Event "Campeonato de Aragon Individual 2020 Fase Final"]
[Site "Zaragoza"]
[Date "2020.10.18"]
[Round "2.4"]
[White "Quintin Navarro, Alberto"]
[Black "Palacios Herrero, Pablo"]
[Result "0-1"]
[TimeControl "90+30 sg"]
[WhiteElo "2383"]
[BlackElo "2232"]

1. c4 {[%clk 01:30:57]} e6 {[%clk 01:30:52]} 2. Nf3 {[%clk 01:31:22]} d5 {[%clk
01:31:17]} 3. g3 {[%clk 01:31:47]} Nf6 {[%clk 01:31:41]} 4. Bg2 {[%clk
01:32:13]} Be7 {[%clk 01:32:03]} 5. O-O {[%clk 01:32:36]} O-O {[%clk 01:32:21]}
6. d4 {[%clk 01:33:02]} dxc4 {[%clk 01:32:21]} 7. Qc2 {[%clk 01:33:25]} a6
{[%clk 01:32:27]} 8. a4 {[%clk 01:33:49]} Bd7 {[%clk 01:32:45]} 9. Qxc4 {[%clk
01:34:08]} Bc6 {[%clk 01:33:09]} 10. Bg5 {[%clk 01:34:31]} Bd5 {[%clk
01:33:06]} 11. Qd3 {[%clk 01:34:53]} Be4 {[%clk 01:32:54]} 12. Qe3 {[%clk
01:35:16]} Bc6 {[%clk 01:29:19]} 13. Nc3 {[%clk 01:35:06]} h6 {[%clk 01:28:01]}
{[%emt 00:01:07]} 14. Bxf6 {[%clk 01:34:39]} {[%emt 00:00:56]} Bxf6 {[%clk
01:28:25]} {[%emt 00:00:07]} 15. Qd3 {[%clk 01:33:09]} {[%emt 00:01:59]} Bxf3
{[%clk 01:23:16]} {[%emt 00:05:39]} 16. Bxf3 {[%clk 01:32:50]} {[%emt
00:00:49]} c6 {[%clk 01:22:20]} {[%emt 00:01:26]} 17. Rad1 {[%clk 01:30:27]}
{[%emt 00:02:53]} a5 {[%clk 01:22:04]} {[%emt 00:00:46]} 18. e4 {[%clk
01:29:29]} {[%emt 00:01:28]} Na6 {[%clk 01:21:58]} {[%emt 00:00:37]} 19. Rfe1
{[%clk 01:25:32]} {[%emt 00:04:26]} Nb4 {[%clk 01:20:11]} {[%emt 00:02:17]} 20.
Qd2 {[%clk 01:25:49]} {[%emt 00:00:13]} Qxd4 {[%clk 01:14:36]} {[%emt
00:06:06]} 21. Qxd4 {[%clk 01:24:29]} {[%emt 00:01:50]} Bxd4 {[%clk 01:15:01]}
{[%emt 00:00:05]} 22. Rxd4 {[%clk 01:24:51]} {[%emt 00:00:08]} Nc2 {[%clk
01:15:29]} {[%emt 00:00:03]} 23. Rdd1 {[%clk 01:24:28]} {[%emt 00:00:53]} Nxe1
{[%clk 01:15:45]} {[%emt 00:00:14]} 24. Rxe1 {[%clk 01:24:53]} {[%emt
00:00:05]} Rfd8 {[%clk 01:15:42]} {[%emt 00:00:33]} 25. e5 {[%clk 01:24:08]}
{[%emt 00:01:14]} Rd2 {[%clk 01:15:05]} {[%emt 00:01:07]} 26. Rb1 {[%clk
01:23:33]} {[%emt 00:01:05]} Ra6 {[%clk 01:12:57]} {[%emt 00:02:39]} 27. Ne4
{[%clk 01:14:42]} {[%emt 00:09:21]} Rd4 {[%clk 01:08:41]} {[%emt 00:04:46]} 28.
Nc5 {[%clk 01:12:01]} {[%emt 00:03:10]} Rb6 {[%clk 01:08:39]} {[%emt 00:00:33]}
29. b3 {[%clk 01:12:04]} {[%emt 00:00:27]} Rc4 {[%clk 01:01:02]} {[%emt
00:08:07]} 30. Nd7 {[%clk 00:45:15]} {[%emt 00:27:19]} Rbb4 {[%clk 01:01:08]}
{[%emt 00:00:24]} 31. Kg2 {[%clk 00:41:03]} {[%emt 00:04:42]} Rc3 {[%clk
00:59:19]} {[%emt 00:02:19]} 32. Rd1 {[%clk 00:40:51]} {[%emt 00:00:42]} Rbxb3
{[%clk 00:55:54]} {[%emt 00:03:55]} 33. Be4 {[%clk 00:41:04]} {[%emt 00:00:17]}
Rb4 {[%clk 00:54:50]} {[%emt 00:01:35]} 34. f3 {[%clk 00:38:24]} {[%emt
00:03:09]} Rcc4 {[%clk 00:52:12]} {[%emt 00:03:08]} 35. Rd6 {[%clk 00:36:32]}
{[%emt 00:02:22]} Rd4 {[%clk 00:37:40]} {[%emt 00:15:03]} 36. g4 {[%clk
00:34:16]} {[%emt 00:02:46]} Rxa4 {[%clk 00:35:51]} {[%emt 00:02:19]} 37. Nc5
{[%clk 00:31:38]} {[%emt 00:03:08]} Rab4 {[%clk 00:34:54]} {[%emt 00:01:27]} 38.
Kf2 {[%clk 00:24:21]} {[%emt 00:07:47]} Kf8 {[%clk 00:32:32]} {[%emt 00:02:52]}
39. Ke3 {[%clk 00:22:53]} {[%emt 00:01:58]} Rxd6 {[%clk 00:32:14]} {[%emt
00:00:49]} 40. exd6 {[%clk 00:23:17]} {[%emt 00:00:05]} a4 {[%clk 00:31:56]}
{[%emt 00:00:48]} 41. Nd3 {[%clk 00:21:15]} {[%emt 00:02:32]} Rb5 {[%clk
00:26:46]} {[%emt 00:05:40]} 42. Kd4 {[%clk 00:19:01]} {[%emt 00:02:44]} f5
{[%clk 00:25:46]} {[%emt 00:01:31]} 43. Nc5 {[%clk 00:19:03]} {[%emt 00:00:28]}
fxe4 {[%clk 00:22:49]} {[%emt 00:03:26]} 44. fxe4 {[%clk 00:19:11]} {[%emt
00:00:23]} e5+ {[%clk 00:19:46]} {[%emt 00:03:34]} 45. Kc4 {[%clk 00:19:33]}
{[%emt 00:00:07]} Rxc5+ {[%clk 00:18:53]} {[%emt 00:01:22]} 46. Kxc5 {[%clk
00:19:57]} {[%emt 00:00:06]} Ke8 {[%clk 00:19:16]} {[%emt 00:00:08]} 0-1